bitfinex-derivatives/quotes_BTCF0:USTF0_20251118
["timestamp","ask_amount","ask_price","bid_price","bid_amount"]
[1763440875098,0.04424,90091.0,90090.0,0.06026803]
[1763440876098,0.3608,90097.0,90096.0,0.04437]
[1763440876303,0.04424,90091.0,90090.0,0.05807]
[1763440876599,0.04424,90091.0,90090.0,0.06026803]
[1763440877395,0.63024,90097.0,90096.0,0.04437]
[1763440877891,0.67448,90097.0,90096.0,0.04437]
[1763440878091,0.04424,90091.0,90090.0,0.03622]
[1763440878301,0.04424,90091.0,90090.0,0.00219803]
[1763440878500,0.67448,90097.0,90096.0,0.04437]
[1763440878892,0.04506,90091.0,90090.0,0.05928]
[1763440879194,0.6753,90097.0,90096.0,0.04558]
[1763440880798,0.65349,90097.0,90096.0,0.04558]
[1763440880994,0.63024,90097.0,90096.0,0.04558]
[1763440881504,0.3608,90097.0,90096.0,0.04558]
[1763440883806,0.40586,90097.0,90096.0,0.04558]
[1763440884498,0.02325,90097.0,90096.0,0.04558]
[1763440885398,0.13539362,90101.0,90100.0,0.06113803]
[1763440885594,0.04506,90088.0,90087.0,0.38366]
[1763440885801,0.04506,90088.0,90087.0,0.02286]
[1763440885996,0.04506,90088.0,90087.0,0.04558]
[1763440886808,0.04506,90087.0,90086.0,0.00016656]
[1763440887102,0.04506,90087.0,90086.0,0.04499656]
[1763440887304,0.04506,90087.0,90086.0,0.02302656]
[1763440887705,0.04506,90087.0,90086.0,0.00016656]
[1763440888005,0.31446,90087.0,90086.0,0.00016656]
[1763440890002,0.31446,90087.0,90070.0,0.01336]
[1763440890203,0.04523,90071.0,90070.0,0.05991803]
[1763440891103,0.04523,90061.0,90060.0,0.3608]
[1763440891410,0.08708599,90061.0,90060.0,0.42094803]
[1763440891605,0.03923923,90068.0,90067.0,0.04436]
[1763440892002,0.08446923,90068.0,90067.0,0.04436]
[1763440892302,0.35386923,90068.0,90067.0,0.04436]
[1763440893500,0.17179737,90068.0,90067.0,0.04436]
[1763440893703,0.44119737,90068.0,90067.0,0.04436]
[1763440894006,0.08732814,90068.0,90067.0,0.04436]
[1763440894201,0.04523,90068.0,90067.0,0.04436]
[1763440895609,0.13486959,90068.0,90067.0,0.04436]
[1763440895811,0.04523,90068.0,90067.0,0.04436]
[1763440896111,0.2694,90070.0,90069.0,0.04436]
[1763440896405,0.40603,90073.0,90072.0,0.04436]
[1763440896607,0.67543,90073.0,90072.0,0.04436]
[1763440897007,0.40512692,90073.0,90072.0,0.04436]
[1763440899212,0.04523,90071.0,90070.0,0.00219803]
[1763440899613,0.04523,90071.0,90070.0,0.04655803]
[1763440899804,0.04523,90071.0,90070.0,0.06014803]
[1763440900007,0.04523,90071.0,90070.0,0.00219803]
[1763440900509,0.02193,90071.0,90070.0,0.06014803]
[1763440901114,0.09049692,90073.0,90072.0,0.04436]
[1763440901302,0.04539656,90080.0,90079.0,0.04436]
[1763440901815,0.04523,90071.0,90070.0,0.05811656]
[1763440902115,0.04523,90071.0,90070.0,0.00016656]
[1763440902411,0.31463,90071.0,90070.0,0.00016656]
[1763440903801,0.31463,90071.0,90070.0,0.06031459]
[1763440904907,0.33849824,90071.0,90070.0,0.06031459]
[1763440905501,0.06909824,90071.0,90070.0,0.06031459]
[1763440906110,0.06909824,90071.0,90070.0,0.00236459]
[1763440908307,0.06909824,90071.0,90070.0,0.06031459]
[1763440908708,0.02386824,90071.0,90070.0,0.06031459]
[1763440909616,0.00016656,90080.0,90079.0,0.04436]
[1763440910002,0.02427895,90080.0,90079.0,0.04436]
[1763440912029,0.06950895,90080.0,90079.0,0.04436]
[1763440912312,0.02427895,90080.0,90079.0,0.04436]
[1763440912513,0.04620895,90080.0,90079.0,0.04436]
[1763440912913,0.04720895,90080.0,90079.0,0.04436]
[1763440913114,0.02527895,90080.0,90079.0,0.04436]
[1763440913324,0.07050895,90080.0,90079.0,0.04436]
[1763440913616,0.06950895,90080.0,90079.0,0.04436]
[1763440913819,0.07050895,90080.0,90079.0,0.04436]
[1763440914417,0.06950895,90080.0,90079.0,0.04436]
[1763440914714,0.07050895,90080.0,90079.0,0.04436]
[1763440915417,0.02527895,90080.0,90079.0,0.04436]
[1763440917018,0.00116656,90080.0,90079.0,0.04436]
[1763440917720,0.00016656,90080.0,90079.0,0.04436]
[1763440917922,0.00116656,90080.0,90079.0,0.04436]
[1763440918121,0.02532064,90080.0,90079.0,0.04436]
[1763440921627,0.0162664,90080.0,90079.0,0.04436]
[1763440923721,0.00016656,90089.0,90088.0,0.04298]
[1763440924319,0.0213,90096.0,90090.0,0.01556803]
[1763440924521,0.3821,90100.0,90099.0,0.05635]
[1763440924722,0.40372,90100.0,90099.0,0.05635]
[1763440926126,0.40372,90100.0,90099.0,0.04298]
[1763440926530,0.49378988,90100.0,90099.0,0.05635]
[1763440926824,0.49578988,90100.0,90099.0,0.05635]
[1763440927020,0.45286988,90100.0,90099.0,0.05635]
[1763440927220,0.3628,90100.0,90099.0,0.05635]
[1763440928129,0.04292,90091.0,90090.0,0.05651656]
[1763440928330,0.04292,90091.0,90090.0,0.00236459]
[1763440928830,0.04292,90091.0,90090.0,0.04534459]
[1763440929428,0.04392,90091.0,90090.0,0.05871459]
[1763440929631,0.0223,90091.0,90090.0,0.05871459]
[1763440930433,0.04392,90091.0,90090.0,0.04534459]
[1763440930818,0.04392,90091.0,90090.0,0.00236459]
[1763440931828,0.04392,90091.0,90090.0,0.00016656]
[1763440932221,0.04392,90091.0,90090.0,0.02204656]
[1763440932429,0.04392,90091.0,90090.0,0.00016656]
[1763440933537,0.001,90091.0,90090.0,0.05871459]
[1763440933830,0.04392,90091.0,90090.0,0.04534459]
[1763440934026,0.04392,90091.0,90090.0,0.00236459]
[1763440934430,0.04392,90091.0,90090.0,0.05871459]
[1763440934925,0.04292,90091.0,90090.0,0.04534459]
[1763440935126,0.04292,90091.0,90090.0,0.00236459]
[1763440935726,0.06735018,90091.0,90090.0,0.02424459]
[1763440935928,0.06735018,90091.0,90090.0,0.04534459]
[1763440936429,0.06735018,90091.0,90090.0,0.00236459]
[1763440936831,0.06735018,90091.0,90090.0,0.04534459]
[1763440937130,0.06735018,90091.0,90090.0,0.00236459]
[1763440938537,0.06835018,90091.0,90090.0,0.00236459]
[1763440938727,0.04673018,90091.0,90090.0,0.05871459]
[1763440938929,0.06780018,90091.0,90090.0,0.04885459]
[1763440939229,0.06680018,90091.0,90090.0,0.02567459]
[1763440939425,0.06780018,90091.0,90090.0,0.02567459]
[1763440939631,0.06780018,90091.0,90090.0,0.00236459]
[1763440940029,0.10703941,90091.0,90090.0,0.00016656]
[1763440940429,0.42860018,90091.0,90090.0,0.00016656]
[1763440940829,0.42860018,90091.0,90090.0,0.06203459]
[1763440941028,0.46691478,90091.0,90090.0,0.04885459]
[1763440941237,0.42860018,90091.0,90090.0,0.00016656]
[1763440942025,0.044,90076.0,90075.0,0.3608]
[1763440942243,0.044,90071.0,90070.0,0.04868803]
[1763440942534,0.06843018,90071.0,90070.0,0.00219803]
[1763440942736,0.06843018,90071.0,90060.0,0.1304425]
[1763440943041,0.044,90061.0,90060.0,0.17913053]
[1763440943236,0.06843018,90061.0,90060.0,0.04868803]
[1763440943549,0.09016988,90071.0,90060.0,0.04868803]
[1763440943842,0.00016656,90075.0,90074.0,0.04649]
[1763440944235,0.27024,90091.0,90072.0,0.01318]
[1763440944236,0.03929249,90085.0,90084.0,0.04649]
[1763440944431,0.03929249,90086.0,90084.0,0.04649]
[1763440944635,0.0599658,90091.0,90086.0,0.04649]
[1763440944636,0.03929249,90088.0,90086.0,0.04649]
[1763440944941,0.03929249,90088.0,90087.0,0.04649]
[1763440945236,0.00399,90099.0,90089.0,0.04649]
[1763440945237,0.03929249,90090.0,90089.0,0.04649]
[1763440945539,0.044,90090.0,90089.0,0.04649]
[1763440945743,0.0589658,90095.0,90094.0,0.04649]
[1763440946042,0.02309656,90097.0,90096.0,0.04649]
[1763440946228,0.00016656,90097.0,90096.0,0.04649]
[1763440946635,0.01283,90117.0,90112.0,0.04649]
[1763440946636,0.044,90113.0,90112.0,0.04649]
[1763440946832,0.044,90113.0,90112.0,0.40729]
[1763440947641,0.01283,90117.0,90112.0,0.40729]
[1763440947642,0.05836,90117.0,90116.0,0.04447]
[1763440948237,0.04553,90113.0,90112.0,0.3608]
[1763440949142,0.04553,90113.0,90110.0,0.00219803]
[1763440949143,0.04553,90111.0,90110.0,0.00219803]
[1763440949341,0.04553,90104.0,90103.0,0.00016645]
[1763440953043,0.04553,90098.0,90097.0,0.3608]
[1763440953242,0.04553,90081.0,90080.0,0.40527]
[1763440953431,0.04553,90081.0,90080.0,0.40746803]
[1763440955839,0.00016645,90090.0,90089.0,0.04447]
[1763440956046,0.02472479,90090.0,90089.0,0.40527]
[1763440957242,0.00016645,90090.0,90089.0,0.40527]
[1763440957943,0.00016645,90090.0,90089.0,0.67443]
[1763440965344,0.00016645,90090.0,90089.0,0.7855535]
[1763440966348,0.00016645,90090.0,90089.0,0.67443]
[1763440968756,0.04569645,90090.0,90089.0,0.40527]
[1763440969158,0.07026845,90090.0,90089.0,0.62996]
[1763440969859,0.07026845,90090.0,90089.0,0.3608]
[1763440970058,0.01264,90088.0,90082.0,0.3608]
[1763440970248,0.04553,90083.0,90082.0,0.3608]
[1763440970449,0.070102,90083.0,90082.0,0.3608]
[1763440973355,0.070102,90083.0,90082.0,0.38351]
[1763440973568,0.070102,90083.0,90082.0,0.40527]
[1763440975561,0.070102,90083.0,90082.0,0.3608]
[1763440976755,0.05817,90081.0,90080.0,0.00219803]
[1763440976949,0.082742,90081.0,90080.0,0.00219803]
[1763440977349,0.082742,90081.0,90080.0,0.04821803]
[1763440977555,0.024572,90081.0,90080.0,0.40901803]
[1763440977756,0.06801698,90087.0,90086.0,0.04499]
[1763440978058,0.04618698,90087.0,90086.0,0.04499]
[1763440978263,0.06801698,90087.0,90086.0,0.04499]
[1763440980768,0.00016645,90090.0,90089.0,0.04499]
[1763440981078,0.09528499,90104.0,90090.0,0.00219803]
[1763440981366,0.04341,90101.0,90100.0,0.36516]
[1763440981558,0.04341,90101.0,90100.0,0.36735803]
[1763440981963,0.04341,90101.0,90100.0,0.37171803]
[1763440982562,0.05187499,90104.0,90100.0,0.37171803]
[1763440982763,0.00051669,107960.0,90104.0,0.1112]
[1763440982764,0.00027739,90126.0,90104.0,0.1112]
[1763440982958,0.09785902,90158.0,90140.0,0.1110603]
[1763440983154,0.01364,90171.0,90143.0,0.20471533]
[1763440983353,0.01364,90171.0,90143.0,0.23458219]
[1763440983665,0.01364,90171.0,90152.0,0.7216]
[1763440983964,0.05705,90162.0,90153.0,0.26912]
[1763440984164,0.04341,90154.0,90152.0,0.3608]
[1763440984464,0.05692721,90162.0,90148.0,0.00016645]
[1763440984465,0.04341,90149.0,90148.0,0.00016645]
[1763440984968,0.08669721,90149.0,90148.0,0.00016645]
[1763440985664,0.04341,90136.0,90135.0,0.3608]
[1763440986051,0.06486721,90136.0,90135.0,0.62988]
[1763440986253,0.08669721,90136.0,90135.0,0.62988]
[1763440986462,0.08669721,90136.0,90135.0,0.3608]
[1763440986973,0.08669721,90136.0,90130.0,0.00219803]
[1763440986974,0.04341,90131.0,90130.0,0.00219803]
[1763440987262,0.04341,90127.0,90126.0,0.00016645]
[1763440987460,0.04328721,90131.0,90130.0,0.00219803]
[1763440987655,0.01364,90144.0,90130.0,0.00219803]
[1763440987866,0.3608,90169.0,90140.0,0.3608]
[1763440988169,0.15548,90164.0,90140.0,0.3608]
[1763440988365,0.3608,90169.0,90140.0,0.3608]
[1763440988666,0.3608,90180.0,90145.0,0.1110544]
[1763440988865,0.3608,90169.0,90154.0,0.3608]
[1763440989069,0.05705,90155.0,90154.0,0.3608]
[1763440989259,0.10033721,90155.0,90154.0,0.3608]
[1763440989459,0.05705,90155.0,90154.0,0.3608]
[1763440989766,0.10033721,90155.0,90154.0,0.3608]
[1763440990265,0.01364,90155.0,90154.0,0.3608]
[1763440990763,0.00016645,90164.0,90154.0,0.3608]
[1763440992061,0.00016645,90164.0,90161.0,0.3608]
[1763440992668,0.04341,90162.0,90161.0,0.3608]
[1763440993069,0.08669721,90162.0,90161.0,0.3608]
[1763440993672,0.04341,90162.0,90161.0,0.3608]
[1763440993874,0.04328721,90162.0,90161.0,0.3608]
[1763440994168,0.00016645,90164.0,90161.0,0.3608]
[1763440995470,0.01364,90168.0,90161.0,0.3608]
[1763440995866,0.05692721,90168.0,90161.0,0.3608]
[1763440996173,0.37444,90181.0,90165.0,0.1110295]
[1763440996174,0.01364,90181.0,90165.0,0.1110295]
[1763440996365,0.01364,90181.0,90180.0,0.3608]
[1763440996560,0.01364,90181.0,90180.0,0.36299803]
[1763440996969,0.05705,90181.0,90180.0,0.36299803]
[1763440997874,0.05705,90181.0,90180.0,0.00219803]
[1763440998267,0.10033721,90181.0,90180.0,0.00219803]
[1763440998667,0.05705,90181.0,90180.0,0.00219803]
[1763440998877,0.01364,90181.0,90180.0,0.36299803]
[1763440999174,0.05692721,90181.0,90180.0,0.36299803]
[1763440999364,0.03492,90181.0,90180.0,0.36299803]
[1763440999562,0.0563,90181.0,90180.0,0.36299803]
[1763440999970,0.09958721,90181.0,90180.0,0.36299803]
[1763441000873,0.04266,90173.0,90172.0,0.3608]
[1763441001061,0.31158,90173.0,90172.0,0.3608]
[1763441001268,0.35486721,90173.0,90172.0,0.3608]
[1763441001473,0.08594721,90173.0,90172.0,0.3608]
[1763441001770,0.35486721,90173.0,90172.0,0.3608]
[1763441002475,0.04266,90171.0,90170.0,0.00219803]
[1763441002876,0.08594721,90171.0,90170.0,0.00219803]
[1763441003175,0.35486721,90171.0,90170.0,0.00219803]
[1763441003868,0.08594721,90171.0,90170.0,0.00219803]
[1763441004062,0.35486721,90171.0,90170.0,0.00219803]
[1763441005178,0.08594721,90171.0,90170.0,0.00219803]
[1763441005472,0.35486721,90171.0,90170.0,0.00219803]
[1763441006275,0.04266,90165.0,90164.0,0.00016635]
[1763441006671,0.08594721,90165.0,90164.0,0.00016635]
[1763441007569,0.04266,90165.0,90164.0,0.00016635]
[1763441007772,0.08594721,90165.0,90164.0,0.00016635]
[1763441007972,0.44674721,90165.0,90164.0,0.00016635]
[1763441008569,0.0455,90151.0,90150.0,0.3608]
[1763441008768,0.31438,90151.0,90150.0,0.36299803]
[1763441008970,0.35766721,90151.0,90150.0,0.36299803]
[1763441009882,0.31438,90151.0,90150.0,0.36299803]
[1763441010681,0.0455,90151.0,90150.0,0.36299803]
[1763441010870,0.31438,90151.0,90150.0,0.36299803]
[1763441011271,0.35766721,90151.0,90150.0,0.36299803]
[1763441011566,0.31438,90151.0,90150.0,0.36299803]
[1763441011976,0.0455,90151.0,90150.0,0.36299803]
[1763441012184,0.26888,90151.0,90150.0,0.36299803]
[1763441012478,0.26888,90154.0,90150.0,0.36299803]
[1763441012679,0.26888,90154.0,90153.0,0.3608]
[1763441012885,0.35766721,90154.0,90153.0,0.3608]
[1763441013066,0.31438,90154.0,90153.0,0.3608]
[1763441013271,0.0455,90154.0,90153.0,0.3608]
[1763441013678,0.01332,90156.0,90153.0,0.3608]
[1763441013974,0.05882,90156.0,90154.0,0.03982248]
[1763441014181,0.0455,90155.0,90154.0,0.03982248]
[1763441014574,0.01332,90156.0,90154.0,0.03982248]
[1763441015177,0.01332,90156.0,90155.0,0.03982248]
[1763441015381,0.01332,90156.0,90153.0,0.40062248]
[1763441015580,0.02285,90154.0,90153.0,0.40062248]
[1763441015783,0.0455,90154.0,90153.0,0.3608]
[1763441015983,0.08878721,90154.0,90153.0,0.3608]
[1763441016278,0.08878721,90154.0,90153.0,0.40062248]
[1763441016486,0.04328721,90154.0,90153.0,0.3608]
[1763441016677,0.01332,90156.0,90153.0,0.3608]
[1763441016978,0.02285,90155.0,90154.0,0.0398583]
[1763441017169,0.02285,90154.0,90153.0,0.3608]
[1763441017575,0.01332,90156.0,90153.0,0.3608]
[1763441018881,0.0455,90154.0,90153.0,0.3608]
[1763441019386,0.08878721,90154.0,90153.0,0.3608]
[1763441019583,0.0455,90154.0,90153.0,0.3608]
[1763441020178,0.08878721,90154.0,90153.0,0.3608]
[1763441020375,0.01332,90156.0,90153.0,0.4007124]
[1763441020573,0.01332,90156.0,90154.0,0.05994676]
[1763441020874,0.05660721,90156.0,90154.0,0.05994676]
[1763441021080,0.02994201,90156.0,90154.0,0.05994676]
[1763441021481,0.02994201,90156.0,90153.0,0.3608]
[1763441021482,0.0455,90154.0,90153.0,0.3608]
[1763441021884,0.07544201,90154.0,90153.0,0.3608]
[1763441022594,0.0455,90154.0,90153.0,0.3608]
[1763441022892,0.07544201,90154.0,90153.0,0.3608]
[1763441023082,0.0455,90154.0,90153.0,0.3608]
[1763441023285,0.01348635,90160.0,90153.0,0.3608]
[1763441023487,0.0455,90154.0,90153.0,0.3608]
[1763441023890,0.07544201,90154.0,90153.0,0.3608]
[1763441024597,0.0455,90154.0,90153.0,0.3608]
[1763441025401,0.02994201,90154.0,90153.0,0.3608]
[1763441025700,0.01348635,90160.0,90153.0,0.3608]
[1763441025895,0.0455,90158.0,90157.0,0.03991122]
[1763441026099,0.0455,90158.0,90153.0,0.3608]
[1763441026100,0.0455,90158.0,90156.0,0.03991122]
[1763441026303,0.0455,90158.0,90155.0,0.03991122]
[1763441026304,0.0455,90156.0,90155.0,0.03991122]
[1763441026700,0.0455,90154.0,90153.0,0.3608]
[1763441027103,0.07544201,90154.0,90153.0,0.3608]
[1763441027609,0.0455,90154.0,90153.0,0.3608]
[1763441027806,0.07544201,90154.0,90153.0,0.3608]
[1763441027994,0.0455,90154.0,90153.0,0.3608]
[1763441028906,0.07544201,90154.0,90153.0,0.3608]
[1763441029606,0.0455,90154.0,90153.0,0.3608]
[1763441029808,0.07544201,90154.0,90153.0,0.3608]
[1763441029998,0.0455,90154.0,90153.0,0.3608]
[1763441030204,0.07544201,90154.0,90153.0,0.3608]
[1763441030399,0.0455,90154.0,90153.0,0.3608]
[1763441031208,0.0455,90154.0,90153.0,0.39075439]
[1763441031713,0.0455,90154.0,90153.0,0.3608]
[1763441031917,0.07544201,90154.0,90153.0,0.3608]
[1763441032217,0.01883282,90154.0,90153.0,0.3608]
[1763441032509,0.07162483,90154.0,90153.0,0.3608]
[1763441032707,0.04168282,90154.0,90153.0,0.3608]
[1763441033507,0.04168282,90154.0,90153.0,0.39077318]
[1763441033711,0.07162483,90154.0,90153.0,0.39077318]
[1763441034713,0.43242483,90154.0,90153.0,0.02997318]
[1763441034898,0.0455,90152.0,90151.0,0.02997318]
[1763441035302,0.0455,90151.0,90150.0,0.03217121]
[1763441035508,0.07544201,90151.0,90150.0,0.03217121]
[1763441035703,0.07544201,90151.0,90150.0,0.00219803]
[1763441037408,0.0455,90151.0,90150.0,0.00219803]
[1763441037820,0.07544201,90151.0,90150.0,0.00219803]
[1763441038714,0.0455,90151.0,90150.0,0.00219803]
[1763441038910,0.07544201,90151.0,90150.0,0.03216679]
[1763441039107,0.07544201,90151.0,90150.0,0.00219803]
[1763441039309,0.04392,90142.0,90141.0,0.40089557]
[1763441039508,0.04392,90142.0,90141.0,0.00016635]
[1763441039708,0.07386201,90142.0,90141.0,0.00016635]
[1763441040108,0.07386201,90142.0,90141.0,0.04009557]
[1763441040305,0.01286,90135.0,90130.0,0.16268799]
[1763441040509,0.04392,90134.0,90130.0,0.16268799]
[1763441040820,0.04392,90134.0,90130.0,0.00219803]
[1763441040821,0.07386201,90134.0,90130.0,0.00219803]
[1763441041015,0.04392,90131.0,90130.0,0.00219803]
[1763441041318,0.07386201,90131.0,90130.0,0.02358803]
[1763441041514,0.04392,90122.0,90121.0,0.00016635]
[1763441042008,0.07386201,90122.0,90121.0,0.00016635]
[1763441042814,0.04392,90122.0,90121.0,0.04345635]
[1763441043018,0.07386201,90122.0,90121.0,0.04345635]
[1763441043217,0.04392,90122.0,90121.0,0.04345635]
[1763441043718,0.02994201,90122.0,90121.0,0.04345635]
[1763441043908,0.02121635,90140.0,90139.0,0.02139]
[1763441044110,0.02121635,90140.0,90139.0,0.04329]
[1763441044316,0.04408635,90140.0,90139.0,0.04329]
[1763441044714,0.07402836,90140.0,90139.0,0.04329]
[1763441045716,0.04408635,90140.0,90139.0,0.04329]
[1763441045916,0.02121635,90140.0,90139.0,0.04329]
[1763441046118,0.04408635,90140.0,90139.0,0.04329]
[1763441046828,0.05115836,90140.0,90139.0,0.04329]
[1763441047023,0.02121635,90140.0,90139.0,0.04329]
[1763441047412,0.05115836,90140.0,90139.0,0.04329]
[1763441047619,0.02121635,90140.0,90139.0,0.04329]
[1763441048120,0.03010836,90140.0,90139.0,0.04329]
[1763441048422,0.00016635,90140.0,90139.0,0.04329]
[1763441049426,0.08688836,90140.0,90139.0,0.04329]
[1763441049726,0.05694635,90140.0,90139.0,0.04329]
[1763441050818,0.05694635,90140.0,90139.0,0.40409]
[1763441051119,0.06021558,90140.0,90139.0,0.04329]
[1763441051319,0.05132357,90140.0,90139.0,0.04329]
[1763441052112,0.05132357,90140.0,90130.0,0.52348799]
[1763441052113,0.04392,90131.0,90130.0,0.56677799]
[1763441052344,0.04392,90131.0,90130.0,0.40628803]
[1763441053016,0.07386201,90131.0,90130.0,0.40628803]
[1763441053519,0.26892,90146.0,90130.0,0.40628803]
[1763441053725,0.04392,90146.0,90145.0,0.04329]
[1763441054111,0.07386201,90146.0,90145.0,0.04329]
[1763441054717,0.07386201,90146.0,90145.0,0.02139]
[1763441054924,0.04392,90142.0,90141.0,0.3608]
[1763441055126,0.07386201,90142.0,90141.0,0.3608]
[1763441055827,0.04392,90131.0,90121.0,0.00016635]
[1763441056035,0.04392,90122.0,90121.0,0.00016635]
[1763441056323,0.0678666,90122.0,90121.0,0.00016635]
[1763441056523,0.0678666,90122.0,90093.0,0.38219]
[1763441056524,0.02105,90094.0,90093.0,0.38219]
[1763441056721,0.04392,90094.0,90093.0,0.40409]
[1763441057028,0.04392,90087.0,90086.0,0.00027751]
[1763441058018,0.04392,90087.0,90086.0,0.04356751]
[1763441060325,0.0444,90094.0,90093.0,0.02192]
[1763441060729,0.0444,90094.0,90092.0,0.3608]
[1763441061026,0.0444,90091.0,90090.0,0.00219803]
[1763441063021,0.36096646,90096.0,90086.0,0.00027751]
[1763441063022,0.0444,90087.0,90086.0,0.00027751]
[1763441063923,0.31336,90087.0,90086.0,0.00027751]
[1763441064534,0.31336,90087.0,90086.0,0.04394751]
[1763441064922,0.31336,90087.0,90086.0,0.00027751]
[1763441066130,0.0444,90078.0,90056.0,0.3608]
[1763441066321,0.01337,90080.0,90047.0,0.3608]
[1763441066322,0.02149,90051.0,90050.0,0.20635799]
[1763441066526,0.0444,90051.0,90050.0,0.04586803]
[1763441067220,0.04448353,90051.0,90050.0,0.00219803]
[1763441067620,0.04507,90047.0,90041.0,0.00016657]
[1763441069331,0.04507,90042.0,90041.0,0.00016657]
[1763441069924,0.40587,90042.0,90041.0,0.00016657]
[1763441070125,0.01359,90030.0,90026.0,0.3608]
[1763441070428,0.04507,90027.0,90026.0,0.3608]
[1763441071433,0.04691991,90027.0,90026.0,0.3608]
[1763441071630,0.04691991,90027.0,90026.0,0.40462]
[1763441071827,0.04691991,90027.0,90017.0,0.00016657]
[1763441071828,0.04507,90018.0,90017.0,0.00016657]
[1763441072327,0.04691991,90018.0,90017.0,0.00016657]
[1763441073735,0.04507,90007.0,90006.0,0.36107776]
[1763441074030,0.31427611,90007.0,90006.0,0.00027776]
[1763441074231,0.04507,89995.0,89976.0,0.3608]
[1763441074422,0.04507,89977.0,89976.0,0.40462]
[1763441074629,0.04507,89977.0,89976.0,0.3608]
[1763441074842,0.01359,89980.0,89976.0,1.5]
[1763441075029,0.04507,89977.0,89976.0,1.5]
[1763441075432,0.29133228,89977.0,89976.0,1.5]
[1763441075736,0.31612219,89977.0,89976.0,1.5]
[1763441076933,0.31616219,89977.0,89976.0,1.5]
[1763441077234,0.00197219,89977.0,89976.0,1.50692]
[1763441077637,0.00197219,89977.0,89976.0,1.86772]
[1763441078228,0.04704219,89977.0,89976.0,1.8608]
[1763441078638,0.04507,89969.0,89968.0,0.00016668]
[1763441078838,0.04507,89967.0,89946.0,0.3608]
[1763441079030,0.04507,89947.0,89946.0,0.38196]
[1763441079333,0.04517536,89947.0,89946.0,1.88196]
[1763441079640,0.04702527,89947.0,89946.0,1.88196]
[1763441079833,0.00195527,89947.0,89946.0,1.88196]
[1763441080026,0.02408527,89947.0,89946.0,1.88196]
[1763441080228,0.00195527,89947.0,89946.0,1.88196]
[1763441080835,0.3608,89988.0,89954.0,0.04382]
[1763441081031,0.21796557,90000.0,89952.0,0.01384]
[1763441081032,0.02213,89979.0,89978.0,0.02116]
[1763441081229,0.3608,89987.0,89969.0,0.3608]
[1763441081230,0.04507,89970.0,89969.0,0.3608]
[1763441081444,0.04507,89962.0,89950.0,0.20511557]
[1763441081737,0.04507,89962.0,89961.0,0.38196]
[1763441081925,0.04507,89962.0,89960.0,0.00219803]
[1763441081926,0.04507,89961.0,89960.0,0.00219803]
[1763441082125,0.0001126,89962.0,89961.0,0.04382]
[1763441082331,0.0222426,89962.0,89961.0,0.04382]
[1763441082630,0.0451826,89962.0,89960.0,0.00219803]
[1763441082830,0.04507,89961.0,89960.0,0.00219803]
[1763441083225,0.0001126,89962.0,89952.0,0.00016668]
[1763441083226,0.04507,89953.0,89952.0,0.00016668]
[1763441084338,0.04507,89947.0,89941.0,0.3608]
[1763441084636,0.04507,89947.0,89926.0,0.00027801]
[1763441084637,0.04507,89927.0,89926.0,0.00027801]
[1763441084837,0.04507,89927.0,89896.0,0.26928]
[1763441084838,0.04507,89924.0,89905.0,0.3608]
[1763441085136,0.63008,89927.0,89905.0,0.3608]
[1763441085137,0.04507,89911.0,89906.0,1.5]
[1763441085334,0.3608,89919.0,89906.0,1.5]
[1763441085335,0.26928,89917.0,89906.0,1.5]
[1763441085534,0.40587,89911.0,89910.0,0.00219803]
[1763441085737,0.04507,89907.0,89906.0,1.5]
[1763441085941,0.04516989,89907.0,89906.0,1.5]
[1763441086438,0.29154989,89907.0,89906.0,1.5]
[1763441086633,9.989e-05,89907.0,89906.0,1.5]
[1763441087742,0.04516989,89907.0,89906.0,1.5]
[1763441089143,9.989e-05,89907.0,89906.0,1.5]
[1763441090244,0.36096677,89919.0,89918.0,0.04382]
[1763441090443,0.40603677,89919.0,89908.0,0.01384]
[1763441090636,0.36096677,89919.0,89918.0,0.04382]
[1763441090837,0.40603677,89919.0,89908.0,0.01384]
[1763441091039,0.40603677,89919.0,89906.0,1.5]
[1763441091040,0.40587,89911.0,89910.0,0.00219803]
[1763441091732,0.04507,89907.0,89906.0,1.5]
[1763441092144,0.3608,89911.0,89910.0,0.00219803]
[1763441092443,0.65233,89911.0,89910.0,0.00219803]
[1763441092637,0.65237,89911.0,89910.0,0.00219803]
[1763441092832,0.63024,89911.0,89910.0,0.04601803]
[1763441093037,0.3608,89911.0,89910.0,0.04601803]
[1763441093338,0.40587,89911.0,89910.0,0.00219803]
[1763441094641,0.40587,89911.0,89910.0,0.04601803]
[1763441095240,0.40587,89911.0,89910.0,0.02335803]
[1763441095538,0.02213,89917.0,89916.0,0.04382]
[1763441095745,9.208e-05,89918.0,89908.0,0.01384]
[1763441095746,0.04516208,89918.0,89917.0,0.02116]
[1763441096145,0.04516208,89918.0,89908.0,0.01384]
[1763441096341,0.40587,89911.0,89910.0,0.02335803]
[1763441096547,0.3608,89911.0,89910.0,0.04601803]
[1763441098038,9.208e-05,89918.0,89917.0,0.0428]
[1763441099246,0.02161208,89918.0,89917.0,0.0428]
[1763441100042,9.208e-05,89918.0,89917.0,0.0428]
[1763441100244,0.04466,89909.0,89908.0,0.02304]
[1763441100540,0.04466,89907.0,89906.0,1.5]
[1763441100748,0.3608,89943.0,89910.0,0.00219803]
[1763441100936,0.35585071,89943.0,89933.0,0.20511557]
[1763441101136,0.3608,89956.0,89936.0,0.3608]
[1763441101347,0.04466,89951.0,89950.0,0.00219803]
[1763441102443,0.00016677,89959.0,89950.0,0.00219803]
[1763441102651,0.04466,89957.0,89956.0,0.3608]
[1763441103144,0.02427463,89976.0,89960.0,0.00219803]
[1763441103145,0.0132,89976.0,89960.0,0.00219803]
[1763441103352,0.02152,89970.0,89969.0,0.3608]
[1763441103536,0.04466,89970.0,89969.0,0.3608]
[1763441103945,0.00025885,89975.0,89970.0,0.00219803]
[1763441104746,0.04466,89971.0,89970.0,0.00219803]
[1763441104943,0.04466,89965.0,89964.0,0.00016677]
[1763441105248,0.0132,89947.0,89940.0,0.20511557]
[1763441105549,0.0132,89947.0,89940.0,0.2073136]
[1763441106047,0.3608,89956.0,89941.0,0.3608]
[1763441106248,0.0132,89960.0,89950.0,0.00219803]